Cogmind - Beta 14 --- EXPLORER MODE // 2024.11.10 @ 00:12:39 Player: Asura Daeva Result: Self-destructed Performance ------------- Evolutions (1) 500 Regions Visited (2) 400 Robots Destroyed (25) 125 Value Destroyed (569) 569 Prototype IDs (5) 100 Alien Tech Used (0) 0 Bonus (0) 0 TOTAL SCORE: 1694 Bonus ------- None Cogmind --------- Core Integrity 300/400 Matter 205/300 Energy 23/250 System Corruption 0% Temperature Hot (212) Movement Rolling (115) Ox1 Location -9/Materials Parts ------- > --- POWER (1) -------- Ion Engine > --- PROPULSION (2) --- Compact Wheel > --- UTILITY (4) ------ Medium Storage Unit Structural Scanner Sensor Array ECM Suite > --- WEAPON (3) ------- Medium Laser Beam Cannon Hammer > --- INVENTORY (10) --- Hover Unit Improved Heat Sink Salvage Targeting Computer Improved Targeting Computer Improved Targeting Computer Power Shielding Propulsion Shielding Utility Shielding Tractor Beam Grenade Launcher Peak State ------------ > --- POWER ------------ Ion Engine > --- PROPULSION ------- Compact Wheel Compact Wheel > --- UTILITY ---------- Medium Storage Unit Structural Scanner Sensor Array Propulsion Shielding > --- WEAPON ----------- Medium Laser Beam Cannon Grenade Launcher > --- INVENTORY -------- Hover Unit Improved Heat Sink Salvage Targeting Computer ECM Suite Power Shielding Utility Shielding Tractor Beam Hammer [Rating: 11] Favorites ----------- Power Ion Engine Engine Ion Engine Propulsion Compact Wheel Treads Light Treads Wheel Compact Wheel Utility Medium Storage Unit Device Structural Scanner Storage Medium Storage Unit Protection Propulsion Shielding Weapon Beam Cannon Energy Gun Small Laser Energy Cannon Beam Cannon Ballistic Gun Assault Rifle Launcher Grenade Launcher Special Weapon Welding Torch Impact Weapon Hammer Build | -11 -10 -9 ------- Run | Yrd Mat Mat Slots Evolved 3 | . 1 2 Power . | . . . Propulsion . | . . . Utility 2 | . . 2 Weapon 1 | . 1 . Parts Attached 28 | 7 17 4 Power 2 | 1 1 . Engine 2 | 1 1 . Core . | . . . Reactor . | . . . Propulsion 4 | 2 2 . Treads 2 | 2 . . Leg . | . . . Wheel 2 | . 2 . Hover . | . . . Flight . | . . . Utility 6 | 2 1 3 Device 3 | . . 3 Storage 2 | 1 1 . Processor . | . . . Hackware . | . . . Protection 1 | 1 . . Artifact . | . . . Weapon 16 | 2 13 1 Energy Gun 3 | 1 2 . Energy Cannon 4 | . 4 . Ballistic Gun 2 | 1 1 . Ballistic Cannon . | . . . Launcher 2 | . 2 . Special Weapon 1 | . 1 . Impact Weapon 4 | . 3 1 Slashing Weapon . | . . . Piercing Weapon . | . . . Special Melee Weapon . | . . . Unidentified Prototypes . | . . . Parts Lost 1 | . . 1 Power . | . . . Propulsion 1 | . . 1 Utility . | . . . Weapon . | . . . Highest Loss Streak 1 | . . 1 To Critical Strikes . | . . . Average Slot Usage (%) 99 | . 99 99 Engine 11 | . 12 10 Treads 10 | . 12 . Wheel 13 | . 12 19 Device 3 | . . 25 Storage 11 | . 12 10 Protection 11 | . 12 4 Energy Gun 6 | . 6 10 Energy Cannon 16 | . 17 10 Ballistic Gun 4 | . 4 . Launcher 3 | . 2 7 Impact Weapon 5 | . 5 2 Peak Build Rating 11 | 7 10 11 Average Rating 8 | 6 9 10 On Entrance 5 | . 7 9 Naked Turns . | . . . Heaviest Build 27 | 19 25 27 Greatest Support 40 | 40 40 32 Greatest Overweight (x) 1 | . 1 . Average Overweight (x) . | . . . Largest Inventory Capacity 10 | 10 10 10 Average Capacity 9 | 9 10 10 Most Carried 10 | 9 10 10 Average Carried 9 | 6 9 9 Final Capacity 10 | 10 10 10 Final Carried 10 | 9 10 10 Class Distribution -------------------- 52% | Hacker-Tank 38% | Hacker-Mutant 9% | Hacker-Skirmisher Dominant Class ---------------- Hacker-Tank | -10/Materials Hacker-Skirmisher | -9/Materials Resources | -11 -10 -9 ----------- Run | Yrd Mat Mat Matter Collected 494 | 294 200 . Remotely . | . . . Salvage Created 853 | 128 517 208 Parts 51 | 6 36 9 Haulers Intercepted 2 | . 2 . Recyclers Shooed . | . . . Parts Field Recycled . | . . . Retrieved Matter . | . . . Parts Self-Destructed . | . . . Prevented . | . . . Kills | -11 -10 -9 ------- Run | Yrd Mat Mat Combat Hostiles Destroyed 13 | . 9 4 Guns 6 | . 4 2 Cannons 4 | . 3 1 AOE 1 | . . 1 Classes Destroyed 9 | 3 5 1 Worker 2 | 1 1 . Builder 1 | . 1 . Tunneler 2 | 2 . . Hauler 2 | . 2 . Recycler 1 | 1 . . Watcher 4 | . 3 1 Swarmer 2 | . 2 . Grunt 7 | . 7 . Sentry 4 | . . 4 Best Kill Streak 4 | 3 4 3 Combat Bots Only 2 | . 2 2 Max Kills in Single Turn 1 | 1 1 1 Gunslinging . | . . . Exploded 1 | . . 1 Melee . | . . . Uniques/NPCs Destroyed . | . . . Combat | -11 -10 -9 -------- Run | Yrd Mat Mat Hostile Shots Fired 93 | . 40 53 Missed 23 | . 11 12 Damage Taken 595 | . 224 371 Core 135 | . 35 100 Absorbed by Shields . | . . . Redirected to Shielding 14 | . 12 2 Ignored by Resistances 374 | . 142 232 Regen/Repaired (Parts) 4 | . 4 . Core Remaining (%) 93 | 100 86 . Volleys Fired 74 | 8 41 25 Largest 3 | 2 3 3 Hottest 140 | 60 140 140 Shots Fired 149 | 16 86 47 Gun 67 | 16 27 24 Cannon 72 | . 53 19 Launcher 5 | . 1 4 Special 5 | . 5 . Kinetic 22 | 8 14 . Thermal 122 | 8 71 43 Explosive 5 | . 1 4 Electromagnetic . | . . . Robot Hit Streak 60 | 6 20 60 Robot Miss Streak 2 | 1 2 . Penetration Max . | . . . Secondary Targets 1 | . 1 . Max Gunslinging Chain 1 | . 1 . Shots Hit Robots 124 | 11 71 42 Core Hits 34 | 5 19 10 Critical Kills 1 | 1 . . Critical Parts Destroyed 1 | . 1 . Critical Strikes 5 | 1 1 3 Burn 3 | . . 3 Destroy 1 | 1 . . Smash 1 | . 1 . Melee Attacks 11 | . 11 . Impact 11 | . 11 . Slashing . | . . . Piercing . | . . . Sneak Attacks . | . . . Combat Hostiles . | . . . Follow-up Attacks . | . . . Damage Inflicted 1759 | 128 1145 486 Guns 537 | 128 200 209 Cannons 929 | . 755 174 Explosions 130 | . 27 103 Melee 155 | . 155 . Ramming . | . . . Kinetic 126 | 48 78 . Thermal 1348 | 80 885 383 Explosive 130 | . 27 103 Electromagnetic . | . . . Impact 155 | . 155 . Slashing . | . . . Piercing . | . . . Highest Corruption . | . . . Average Corruption . | . . . Corruption Purged . | . . . Corruption Blocked . | . . . Overload Shots . | . . . Overflow Damage 51 | . 51 . Projectiles . | . . . Explosions . | . . . Melee 51 | . 51 . Knockbacks . | . . . Impact . | . . . Kinetic . | . . . Secondary . | . . . Self-Inflicted Damage 3 | . . 3 Shots 1 | . . 1 Rammed . | . . . Targets Rammed . | . . . Kicked . | . . . Crushed . | . . . Highest Temperature 443 | . 378 443 Average Temperature 142 | . 123 182 Received Heat Transfer 426 | . 192 234 Effects 2 | . 1 1 Shutdowns 1 | . . 1 Short Circuit 1 | . 1 . Siege Activations . | . . . Robots Corrupted 2 | . 2 . Combat Hostiles 2 | . 2 . Parts Fried 3 | . 3 . Impact Corruptions 4 | . 4 . Robots Melted . | . . . Combat Hostiles . | . . . Parts Melted 9 | . 3 6 Heat Transferred 3348 | 175 1952 1221 Parts Sabotaged . | . . . Parts Stolen . | . . . Parts Stripped . | . . . Power Chain Reactions . | . . . Alert | -11 -10 -9 ------- Run | Yrd Mat Mat Peak Influence 228 | 20 159 228 Initial 9 | . 9 . Average 50 | 9 45 123 Maximum Alert Level 1 | . . 1 Low Security (%) 97 | 100 100 74 Level 1 2 | . . 25 Level 2 . | . . . Level 3 . | . . . Level 4 . | . . . Level 5 . | . . . High Security . | . . . Max Security . | . . . Squads Dispatched 2 | . 1 1 Investigation 1 | . 1 . Extermination . | . . . Reinforcement 1 | . . 1 Assault . | . . . Garrison . | . . . Intercept . | . . . Searches Triggered . | . . . Construction Impeded . | . . . Haulers Reinforced . | . . . Active Scanning Responses . | . . . Cargo Convoy Interrupts . | . . . Stealth | -11 -10 -9 --------- Run | Yrd Mat Mat Distress Signals 2 | . 1 1 Communications Jammed . | . . . Distress Signals . | . . . Times Spotted 24 | . 15 9 Peak Tracking Total 5 | . 5 5 Tactical Retreats 2 | . 1 1 Traps | -11 -10 -9 ------- Run | Yrd Mat Mat Traps Triggered 1 | . 1 . Indirectly . | . . . Trap Hack Attempts . | . . . Triggered . | . . . Disarmed . | . . . Reprogrammed . | . . . Reused . | . . . Traps Extracted . | . . . Installed . | . . . Triggered . | . . . Machines | -11 -10 -9 ---------- Run | Yrd Mat Mat Machines Disabled 1 | . . 1 Max in Single Turn 1 | . . 1 Machines Repaired . | . . . Machines Dismantled . | . . . Machines Sabotaged . | . . . Overloaded Fab Kills . | . . . Hacking | -11 -10 -9 --------- Run | Yrd Mat Mat Machines Accessed 10 | . 9 1 Terminals 9 | . 8 1 Fabricators . | . . . Repair Stations 1 | . 1 . Recycling Units . | . . . Scanalyzers . | . . . Garrison Access . | . . . Total Hacks 31 | . 27 4 Successful 20 | . 17 3 Failed 11 | . 10 1 Catastrophic . | . . . Database Lockouts . | . . . Manual 14 | . 12 2 Terminals 29 | . 25 4 Fabricators . | . . . Repair Stations 2 | . 2 . Recycling Units . | . . . Scanalyzers . | . . . Garrison Access . | . . . Terminal Hacks 18 | . 15 3 Record 1 | . 1 . Part Schematic 3 | . 3 . Prototype ID Bank 4 | . 3 1 Branch Access Points 1 | . . 1 Unreport Threat 2 | . 2 . Locate Traps 4 | . 4 . Dispatch Records 1 | . 1 . Transport Status 1 | . . 1 Registered Prototypes 1 | . 1 . Fabricator Hacks . | . . . Repair Station Hacks 2 | . 2 . Scan Component 1 | . 1 . Repair 1 | . 1 . Recycling Unit Hacks . | . . . Scanalyzer . | . . . Garrison Access Hacks . | . . . Unauthorized Hacks . | . . . Terminals . | . . . Fabricators . | . . . Repair Stations . | . . . Recycling Units . | . . . Scanalyzers . | . . . Garrison Access . | . . . Data Cores Recovered . | . . . Used . | . . . Hacking Detections 9 | . 9 . Full Trace Events 1 | . 1 . Feedback Events . | . . . Feedback Blocked . | . . . Robot Schematics Acquired . | . . . Robots Built . | . . . Authchips . | . . . Time . | . . . Total Robot Build Rating . | . . . Part Schematics Acquired 3 | . 3 . Parts Built . | . . . Authchips . | . . . Time . | . . . Total Part Build Rating . | . . . Parts Repaired 1 | . 1 . Time 38 | . 38 . Parts Recycled . | . . . Recycled Matter . | . . . Retrieved Matter . | . . . Retrieved Components . | . . . Parts Scanalyzed . | . . . Part Schematics Acquired . | . . . Parts Damaged . | . . . Bothacking | -11 -10 -9 ------------ Run | Yrd Mat Mat Used RIF Installer . | . . . Robots Hacked . | . . . Non-combat . | . . . Combat . | . . . Robot Hacks Applied . | . . . Relay Couplers Released . | . . . Fabnet Peak Effective % . | . . . Robots Rewired . | . . . Allies Hacked . | . . . Hacks Repelled . | . . . Allies | -11 -10 -9 -------- Run | Yrd Mat Mat Total Allies . | . . . Largest Group . | . . . Highest-Rated Group . | . . . Highest-Rated Ally . | . . . Total Orders . | . . . Ally Attacks . | . . . Total Damage . | . . . Kills . | . . . Allies Corrupted . | . . . Allies Melted . | . . . Intel | -11 -10 -9 ------- Run | Yrd Mat Mat Robot Analysis Total . | . . . Derelict Logs Recovered . | . . . Drone Launches . | . . . Drone Recoveries . | . . . Exploration | -11 -10 -9 ------------- Run | Yrd Mat Mat Turns Passed 1651 | 174 1291 186 Spaces Moved 1001 | 86 819 96 Core 5 | 5 . . Treads 397 | 81 316 . Legs . | . . . Wheels 599 | . 503 96 Hover . | . . . Flight . | . . . Fastest Speed 50 | 50 100 100 Average Speed 123 | 153 123 100 Slowest Speed 160 | 160 160 100 Overloaded Moves . | . . . Propulsion Burnouts . | . . . Robots Hopped . | . . . Cave-ins Triggered . | . . . Exploration Rate (%) 39 | 4 97 17 Regions Visited 2 Branch Regions . Pre-discovered Areas . | . . . Known Exits Taken 2 | 1 1 . Unknown Exits Taken . | . . . Scrap Searched . | . . . Spaces Dug 3 | . 3 . Terrain Destroyed 44 | . 12 32 Melee 3 | . 3 . Projectile . | . . . AOE 41 | . 9 32 Terrain Rammed . | . . . Walls Destroyed . | . . . Machines Disabled . | . . . Actions | -11 -10 -9 --------- Run | Yrd Mat Mat Total 1255 | 109 1006 140 Wait 98 | . 85 13 Move 999 | 85 818 96 Hop . | . . . Pick Up 24 | 9 13 2 Fast Attach 14 | 7 7 . Attach 3 | . 1 2 Detach . | . . . Swap 11 | . 9 2 Drop 21 | . 21 . Fire 74 | 8 41 25 Melee 11 | . 11 . Ram . | . . . Kick . | . . . Crush . | . . . Escape Stasis . | . . . Rewire . | . . . Trap . | . . . Miscellaneous . | . . . Route ------- -11/Scrapyard -10/Materials (discovered 4 exits: *Mat x3 / *Min) -9/Materials (discovered 2 exits: Min x2) History --------- Turn | Location | Event 13 | -11/Scrapyard | Identified exit to Materials 13 | -11/Scrapyard | Discovered exit to Materials (range 14) 175 | -11/Scrapyard | Entered Materials 175 | -10/Materials | Evolved 1 slot: Weapon x1 314 | -10/Materials | Build established: Hacker-Tank 407 | -10/Materials | Identified exit to Materials 407 | -10/Materials | Discovered exit to Materials (range 3) 602 | -10/Materials | Identified exit to Mines 602 | -10/Materials | Discovered exit to Mines (range 7) 900 | -10/Materials | Build established: Hacker-Mutant 970 | -10/Materials | Discovered exit to Materials (range 10) 1329 | -10/Materials | Discovered exit to Materials (range 4) 1443 | -10/Materials | Repaired Imp. Heat Sink 1466 | -10/Materials | Entered another Materials area 1466 | -9/Materials | Evolved 2 slots: Utility x2 1493 | -9/Materials | Identified exit to Mines 1652 | -9/Materials | Self-destructed Last Messages --------------- 01585_ Y-45 Defender destroyed. 01586_ Critical hit (Burn: +37). 01604_ Y-45 Defender suffers critical hit (Burn). 01604_ Heat Sink melted. 01604_ Y-45 Defender destroyed. 01609_ Critical hit (Burn: +37). 01610_ K-01 Serf collects debris. 01630_ Critical hit (Burn: +37). 01631_ Power failure, Ion Engine shutdown. 01631_ U-05 Engineer lays Concrete. 01633_ K-01 Serf collects debris. 01633_ U-05 Engineer lays Concrete. 01636_ U-05 Engineer builds a Wall. 01637_ K-01 Serf collects debris. 01641_ The unstable cave ceiling collapses. 01641_ K-01 Serf collects debris. 01646_ Atomic Centrifuge disabled. 01648_ K-01 Serf collects debris. 01649_ Com. Wheel destroyed. 01651_ K-01 Serf collects debris. Map ----- +----------------------------------------------------+ | ??????????????????????????????????????????????? | | ??????????????????????????????????????????????? | | ??????????????????????????????????????????????? | | ??????????????????????????????????????????????? | | ??????????????????????????????????????????????? | | ??????????????????????????????????????????????? | | ??????????????????????????????????????????????? | | ??????????????????????????????????????????????? | | ????????????????????????????????? ????????????? | | ????????????????????????????????? ? ##??????? | | ???????????????????????????????? ##??????? | | ???????????????????????????????? ##??????? | | ???????????????????????????????? ?????????? | | ??????????????????????????????## ?????????? | | ??????????????????????????????## ?????????? | | ??????????????????????????????## ##?????????? | | ?????????????????????????????? #? ##?????????? | | ?????????????????????????????? ##?????????? | | ???????????????????######## # ####???????? | | ?""????????????????############# ####???????? | | ? ????????????????## ##???????? | | ? ????????????????## T # ##???????? | | ? ????######??????## k % ##???????? | | ############### """ """ = % ## #####?? | | ##+###### ########## """ """ #%g ##+####### | | ## #### # """@ "" !#=? ## | | # + [%= # # Y ###? ## | | # # ! # ############# ### ## | | # # #[[ ####T###### # [ ] ! ## | | # # #[[ # ? "" ########### | | # # !! /[[ + T #### | | # # !! # # ? ##### ##?? | | + / =# ###+####+## ##### ????? | | # # # """ ## # ###???????? | | # ########### " ## ???? # ##???????? | | # ########## % ## ???? #==!!**##???????? | | # ##??????### ## "???? #==!!**##???????? | | # ##??????## +### ""??? #########???????? | | # ##??????#### ### ""??? #########???????? | | # ##??????###### ?## "????????????????????? | | ##????????#### ### ????????????????????? | | ##???????????#+######+????????????????????? | | ##??????????? ## ????????????????????? | | # ##????????????????????????????????????????? | | # ##????????????????????????????????????????? | | # ##????????????????????????????????????????? | | # ##????????????????????????????????????????? | | # #####?????????????????????????????????????? | | # ######????????????????????????????????????? | | # !###????????????????????????????????????? | +----------------------------------------------------+ Best States ------------- Heat Dissipation 28 Energy Generation 10 Energy Capacity 250 Matter Stores 300 Matter Capacity 300 Sight Range 16 Robot Scan Range 14 Terrain Scan Density 10 ECM Strength 1 Resistance: KI 35 Resistance: TH 35 Resistance: EX 35 Resistance: EM 35 Resistance: I 35 Resistance: S 35 Resistance: P 35 Propulsion Shielding 33 Evasion (%) 40 Recoil Reduction 2 Offensive Hacking 20 Item Schematics ----------------- Med. Storage Unit | -10/Materials | Hacked Lrg. Battery | -10/Materials | Hacked Lrg. Storage Unit | -10/Materials | Hacked Robot Schematics ------------------ None Fabricated ------------ Nothing Alien Tech Used ----------------- None Achievements -------------- None Challenges ------------ None Game ------ Seed ZhirovMyomerDetonator Manual? 0 Play Time 01:00:55 Cumulative 14.7 hours Start 2024.11.09 @ 22:58:09 End 2024.11.10 @ 00:12:39 Sessions 1 Manual Loads 0 Difficulty Explorer Special Mode None Game No. 4 Rogue 0 Adventurer 0 Explorer 4 Win Type - Total 0 Types 0/0/0/0/0/0/0/0/0 Lore% 5 Gallery% 13 Achievement% 31 Wizard Run 0 Options --------- Layout 0 ASCII 0 Keyboard 0 Movement Mouse Keybinds 0 Fullscreen 2 Font 18/X11Bold Map View 76x50 Zoom Use 0% Tactical HUD 1 Map Filters NONE Filters NONE Steam 1 RUN: 5fd88ab4-8bb4-43af-93f2-17c06236365b